Cogmind - Beta 10.2 @@@ ROGUE MODE // 2022.01.17 @ 08:46:36 Player: SergeMan Result: Destroyed by G-47 Trooper with Particle Gun Performance ------------- Evolutions (1) 500 Regions Visited (3) 600 Robots Destroyed (84) 420 Value Destroyed (1964) 1964 Prototype IDs (7) 140 Alien Tech Used (0) 0 Bonus (122) 122 TOTAL SCORE: 3746 Bonus ------- High Alert Combat Kills 122 Cogmind --------- Core Integrity 0/400 Matter 264/300 Energy 280/280 System Corruption 0% Temperature Cool (9) Movement Treading (145) Location -9/Mines Parts ------- > --- POWER (1) -------- Cooled Ion Engine > --- PROPULSION (2) --- Advanced Treads Advanced Treads > --- UTILITY (4) ------ Large Storage Unit Improved Signal Interpreter Hacking Suite System Shield > --- WEAPON (2) ------- Improved Assault Rifle Improved Assault Rifle > --- INVENTORY (10) --- Cooled Ion Engine Cooled Ion Engine Cooled Ion Engine Advanced Treads Improved Assault Rifle Improved Assault Rifle Improved Assault Rifle Improved Assault Rifle Flak Cannon Flak Cannon Peak State ------------ > --- POWER ------------ Cooled Ion Engine > --- PROPULSION ------- Advanced Treads Advanced Treads > --- UTILITY ---------- Large Storage Unit Improved Signal Interpreter Hacking Suite System Shield > --- WEAPON ----------- Improved Assault Rifle Improved Assault Rifle > --- INVENTORY -------- Cooled Ion Engine Cooled Ion Engine Cooled Ion Engine Advanced Treads Improved Assault Rifle Improved Assault Rifle Improved Assault Rifle Improved Assault Rifle Flak Cannon Flak Cannon [Rating: 27] Favorites ----------- Power Ion Engine Engine Ion Engine Propulsion Advanced Treads Treads Advanced Treads Flight Unit Improved Flight Unit Utility Hacking Suite Device Improved Terrain Scanner Storage Large Storage Unit Processor Signal Interpreter Hackware Hacking Suite Protection Hardened Light Armor Plating Weapon Autogun Energy Gun EM Pulse Gun Ballistic Gun Autogun Ballistic Cannon Flak Cannon Build | -11 -10 -9 -9 ------- Run | Scr Mat Mat Min Slots Evolved 2 | . . 2 . Power . | . . . . Propulsion . | . . . . Utility 2 | . . 2 . Weapon . | . . . . Parts Attached 55 | 8 13 34 . Power 9 | 1 2 6 . Engine 9 | 1 2 6 . Core . | . . . . Reactor . | . . . . Propulsion 14 | 2 2 10 . Treads 13 | 2 2 9 . Leg . | . . . . Wheel . | . . . . Hover . | . . . . Flight 1 | . . 1 . Utility 12 | 2 4 6 . Device 2 | 1 1 . . Storage 1 | . . 1 . Processor 4 | 1 1 2 . Hackware 2 | . 1 1 . Protection 3 | . 1 2 . Artifact . | . . . . Weapon 20 | 3 5 12 . Energy Gun 3 | 1 1 1 . Energy Cannon . | . . . . Ballistic Gun 15 | 2 4 9 . Ballistic Cannon 2 | . . 2 . Launcher . | . . . . Special Weapon . | . . . . Impact Weapon . | . . . . Slashing Weapon . | . . . . Piercing Weapon . | . . . . Special Melee Weapon . | . . . . Unidentified Prototypes 4 | . . 4 . Parts Lost 4 | . 1 3 . Power 1 | . . 1 . Propulsion . | . . . . Utility . | . . . . Weapon 3 | . 1 2 . Highest Loss Streak 1 | . 1 1 . Average Slot Usage (%) 99 | . 99 99 100 Engine 11 | . 13 10 11 Treads 24 | . 28 22 22 Device 2 | . 7 . . Storage 6 | . . 11 11 Processor 10 | . 9 11 11 Hackware 13 | . 6 17 22 Protection 4 | . 4 4 . Energy Gun 1 | . 4 . . Ballistic Gun 22 | . 23 21 22 Naked Turns . | . . . . Heaviest Build 37 | 10 17 37 . Greatest Support 44 | 40 40 44 . Greatest Overweight (x) 1 | . . 1 . Average Overweight (x) . | . . . . Largest Inventory Capacity 10 | 4 4 10 10 Average Capacity 7 | 4 4 10 10 Most Carried 10 | 1 4 10 10 Average Carried 7 | . 3 9 10 Final Capacity 10 | 4 4 10 10 Final Carried 10 | 1 4 10 10 Class Distribution -------------------- 42% | Mutant 34% | Hacker-Mutant 23% | Scavenger-Mutant Dominant Class ---------------- Scavenger-Mutant | -10/Materials Hacker-Mutant | -9/Materials Hacker-Mutant | -9/Mines Resources | -11 -10 -9 -9 ----------- Run | Scr Mat Mat Min Matter Collected 2537 | 283 660 1594 . Remotely . | . . . . Salvage Created 3010 | 33 859 2118 . Parts 195 | 8 57 130 . Haulers Intercepted 8 | . 2 6 . Recyclers Shooed 1 | . . 1 . Parts Field Recycled . | . . . . Retrieved Matter . | . . . . Parts Self-Destructed . | . . . . Prevented . | . . . . Kills | -11 -10 -9 -9 ------- Run | Scr Mat Mat Min Combat Hostiles Destroyed 56 | . 14 42 . Guns 56 | . 14 42 . Classes Destroyed 10 | 1 7 2 . Worker 2 | . 2 . . Tunneler 3 | 2 1 . . Hauler 8 | . 2 6 . Recycler 2 | . 1 1 . Operator 5 | . 3 2 . Watcher 8 | . 3 5 . Swarmer 14 | . 4 10 . Grunt 30 | . 10 20 . Brawler 2 | . . 2 . Sentry 10 | . . 10 . Best Kill Streak 6 | 2 4 6 . Combat Bots Only 5 | . 3 5 . Max Kills in Single Turn 2 | 2 2 2 . Gunslinging 1 | . . 1 . Exploded . | . . . . Melee . | . . . . Uniques/NPCs Destroyed . | . . . . Combat | -11 -10 -9 -9 -------- Run | Scr Mat Mat Min Damage Taken 2732 | . 731 1833 168 Core 544 | . 133 331 80 Absorbed by Shields . | . . . . Core Remaining (%) 73 | 100 46 . . Volleys Fired 257 | 1 75 175 6 Largest 2 | 2 2 2 2 Hottest 105 | 60 105 58 46 Shots Fired 511 | 2 150 347 12 Gun 510 | 2 150 346 12 Cannon 1 | . . 1 . Launcher . | . . . . Special . | . . . . Kinetic 498 | 1 138 347 12 Thermal 2 | . 2 . . Explosive . | . . . . Electromagnetic 11 | 1 10 . . Robot Hit Streak 32 | 1 16 32 31 Robot Miss Streak 5 | . 5 5 1 Penetration Max . | . . . . Secondary Targets 10 | . 2 8 . Max Gunslinging Chain 1 | . 1 1 . Shots Hit Robots 350 | 1 94 245 10 Core Hits 131 | 2 39 88 2 Critical Hits 4 | . . 4 . Critical Kills 1 | . . 1 . Critical Parts Destroyed 2 | . . 2 . Melee Attacks . | . . . . Impact . | . . . . Slashing . | . . . . Piercing . | . . . . Sneak Attacks . | . . . . Combat Hostiles . | . . . . Follow-up Attacks . | . . . . Damage Inflicted 5040 | 26 1347 3523 144 Guns 5018 | 26 1347 3501 144 Cannons . | . . . . Explosions . | . . . . Melee . | . . . . Ramming 22 | . . 22 . Kinetic 4883 | 13 1225 3501 144 Thermal 17 | . 17 . . Explosive . | . . . . Electromagnetic 118 | 13 105 . . Impact . | . . . . Slashing . | . . . . Piercing . | . . . . Highest Corruption . | . . . . Average Corruption . | . . . . Corruption Purged . | . . . . Overload Shots . | . . . . Overflow Damage . | . . . . Projectiles . | . . . . Explosions . | . . . . Melee . | . . . . Knockbacks . | . . . . Impact . | . . . . Kinetic . | . . . . Secondary . | . . . . Self-Inflicted Damage . | . . . . Shots . | . . . . Rammed 4 | . . 4 . Targets Rammed 4 | . . 4 . Kicked . | . . . . Crushed . | . . . . Highest Temperature 82 | . 81 82 11 Average Temperature 17 | . 20 14 4 Received Heat Transfer 951 | . 237 624 90 Siege Activations . | . . . . Robots Corrupted . | . . . . Combat Hostiles . | . . . . Parts Fried . | . . . . Impact Corruptions . | . . . . Robots Melted . | . . . . Combat Hostiles . | . . . . Parts Melted . | . . . . Heat Transferred 37 | . 37 . . Parts Sabotaged . | . . . . Parts Stolen . | . . . . Parts Stripped . | . . . . Power Chain Reactions . | . . . . Missiles Intercepted . | . . . . Alert | -11 -10 -9 -9 ------- Run | Scr Mat Mat Min Peak Influence 664 | 10 252 664 273 Initial 258 | . 6 46 258 Average 272 | 3 109 376 272 Maximum Alert Level 2 | . 1 2 1 Low Security (%) 45 | 100 94 14 . Level 1 27 | . 5 40 100 Level 2 27 | . . 44 . Level 3 . | . . . . Level 4 . | . . . . Level 5 . | . . . . High Security . | . . . . Max Security . | . . . . Squads Dispatched 14 | . 6 8 . Investigation 8 | . 4 4 . Extermination . | . . . . Reinforcement 6 | . 2 4 . Assault . | . . . . Garrison . | . . . . Intercept . | . . . . Construction Impeded 1 | . . 1 . Haulers Reinforced . | . . . . Stealth | -11 -10 -9 -9 --------- Run | Scr Mat Mat Min Distress Signals 2 | . . 2 . Communications Jammed . | . . . . Distress Signals . | . . . . Times Spotted 96 | . 32 61 3 Peak Tracking Total 6 | . 3 6 3 Tactical Retreats 4 | . . 4 . Traps | -11 -10 -9 -9 ------- Run | Scr Mat Mat Min Traps Triggered 6 | . 4 2 . Indirectly . | . . . . Trap Hack Attempts . | . . . . Triggered . | . . . . Disarmed . | . . . . Reprogrammed . | . . . . Reused . | . . . . Traps Extracted . | . . . . Installed . | . . . . Triggered . | . . . . Machines | -11 -10 -9 -9 ---------- Run | Scr Mat Mat Min Machines Disabled 2 | . 1 1 . Max in Single Turn 1 | . 1 1 . Machines Sabotaged . | . . . . Garrisons Compromised . | . . . . Overloaded Fab Kills . | . . . . Fab Network Shutdowns . | . . . . Hacking | -11 -10 -9 -9 --------- Run | Scr Mat Mat Min Machines Accessed 23 | . 9 14 . Terminals 15 | . 6 9 . Fabricators . | . . . . Repair Stations 3 | . 1 2 . Recycling Units 3 | . 2 1 . Scanalyzers 2 | . . 2 . Garrison Access . | . . . . Total Hacks 82 | . 18 64 . Successful 61 | . 15 46 . Failed 21 | . 3 18 . Catastrophic 3 | . . 3 . Database Lockouts . | . . . . Manual 23 | . 4 19 . Terminals 44 | . 11 33 . Fabricators . | . . . . Repair Stations 19 | . 5 14 . Recycling Units 4 | . 2 2 . Scanalyzers 15 | . . 15 . Garrison Access . | . . . . Terminal Hacks 25 | . 8 17 . Prototype ID Bank 2 | . . 2 . Branch Access Points 1 | . . 1 . Emergency Access Points 4 | . . 4 . Terminal Index 1 | . 1 . . Alert Level 5 | . 3 2 . Unreport Threat 1 | . . 1 . Locate Traps 1 | . 1 . . Maintenance Status 1 | . 1 . . Hauler Manifests 4 | . 2 2 . Zone Layout 5 | . . 5 . Fabricator Hacks . | . . . . Repair Station Hacks 17 | . 5 12 . Scan Component 9 | . 3 6 . Repair 8 | . 2 6 . Recycling Unit Hacks 4 | . 2 2 . Report Inventory 4 | . 2 2 . Scanalyzer 15 | . . 15 . Insert Component 7 | . . 7 . Analyze 8 | . . 8 . Garrison Access Hacks . | . . . . Unauthorized Hacks . | . . . . Terminals . | . . . . Fabricators . | . . . . Repair Stations . | . . . . Recycling Units . | . . . . Scanalyzers . | . . . . Garrison Access . | . . . . Data Cores Recovered 1 | . 1 . . Used . | . . . . Hacking Detections 16 | . 5 11 . Full Trace Events 6 | . 2 4 . Feedback Events . | . . . . Feedback Blocked . | . . . . Robot Schematics Acquired . | . . . . Robots Built . | . . . . Matter . | . . . . Time . | . . . . Total Robot Build Rating . | . . . . Part Schematics Acquired 7 | . . 7 . Parts Built . | . . . . Matter . | . . . . Time . | . . . . Total Part Build Rating . | . . . . Parts Repaired 8 | . 2 6 . Time 293 | . 58 235 . Parts Recycled . | . . . . Recycled Matter . | . . . . Retrieved Matter . | . . . . Retrieved Components . | . . . . Parts Scanalyzed 7 | . . 7 . Part Schematics Acquired 7 | . . 7 . Parts Damaged . | . . . . Bothacking | -11 -10 -9 -9 ------------ Run | Scr Mat Mat Min Used RIF Installer . | . . . . Robots Hacked . | . . . . Non-combat . | . . . . Combat . | . . . . Robot Hacks Applied . | . . . . Relay Couplers Released . | . . . . Robots Rewired . | . . . . Allies Hacked . | . . . . Hacks Repelled . | . . . . Allies | -11 -10 -9 -9 -------- Run | Scr Mat Mat Min Total Allies . | . . . . Largest Group . | . . . . Highest-Rated Group . | . . . . Highest-Rated Ally . | . . . . Total Orders . | . . . . Ally Attacks . | . . . . Total Damage . | . . . . Kills . | . . . . Allies Corrupted . | . . . . Allies Melted . | . . . . Intel | -11 -10 -9 -9 ------- Run | Scr Mat Mat Min Robot Analysis Total . | . . . . Derelict Logs Recovered . | . . . . Drone Launches . | . . . . Drone Recoveries . | . . . . Exploration | -11 -10 -9 -9 ------------- Run | Scr Mat Mat Min Turns Passed 5122 | 83 1877 3146 16 Spaces Moved 2461 | 46 947 1468 . Core 5 | 5 . . . Treads 2456 | 41 947 1468 . Legs . | . . . . Wheels . | . . . . Hover . | . . . . Flight . | . . . . Fastest Speed 50 | 50 160 145 . Average Speed 150 | 148 160 145 . Slowest Speed 165 | 160 160 165 . Overloaded Moves . | . . . . Propulsion Burnouts . | . . . . Robots Hopped . | . . . . Cave-ins Triggered . | . . . . Exploration Rate (%) 51 | 4 99 99 2 Regions Visited 3 Branch Regions 1 Pre-discovered Areas . | . . . . Known Exits Taken 2 | . 1 1 . Unknown Exits Taken 1 | 1 . . . Scrap Searched . | . . . . Spaces Dug . | . . . . Terrain Destroyed . | . . . . Melee . | . . . . Projectile . | . . . . AOE . | . . . . Terrain Rammed . | . . . . Walls Destroyed . | . . . . Machines Disabled . | . . . . Actions | -11 -10 -9 -9 --------- Run | Scr Mat Mat Min Total 3429 | 55 1188 2180 6 Wait 578 | 1 133 444 . Move 2458 | 45 946 1467 . Hop . | . . . . Pick Up 37 | . 9 28 . Fast Attach 19 | 7 5 7 . Attach 9 | . 4 5 . Detach 3 | . 2 1 . Swap 27 | 1 4 22 . Drop 37 | . 10 27 . Fire 257 | 1 75 175 6 Melee . | . . . . Ram . | . . . . Kick . | . . . . Crush 4 | . . 4 . Escape Stasis . | . . . . Rewire . | . . . . Trap . | . . . . Miscellaneous . | . . . . Route ------- -11/Scrapyard -10/Materials (discovered 5 exits: *Mat x3 / *Min x2) -9/Materials (discovered 5 exits: *Mat x3 / *Min x2) -9/Mines History --------- Turn | Location | Event 18 | -11/Scrapyard | Discovered new exit (range 15) 84 | -11/Scrapyard | Entered Materials 303 | -10/Materials | Build established: Mutant 424 | -10/Materials | Discovered new exit (range 15) 631 | -10/Materials | Discovered new exit (range 15) 1119 | -10/Materials | Build established: Scavenger-Mutant 1172 | -10/Materials | Core integrity fell below 50% 1271 | -10/Materials | Discovered new exit (range 11) 1294 | -10/Materials | Identified exit to Materials 1379 | -10/Materials | Discovered new exit (range 8) 1389 | -10/Materials | Identified exit to Mines 1624 | -10/Materials | Discovered exit to Materials (range 13) 1754 | -10/Materials | Repaired Ion Engine 1787 | -10/Materials | Repaired Autogun 1961 | -10/Materials | Entered another Materials area 1961 | -9/Materials | Evolved 2 slots: Utility x2 2290 | -9/Materials | Build established: Mutant 3181 | -9/Materials | Core integrity fell below 50% 3252 | -9/Materials | Repaired Autogun 3291 | -9/Materials | Repaired Adv. Treads 3397 | -9/Materials | Discovered new exit (range 15) 3416 | -9/Materials | Identified exit to Materials 3652 | -9/Materials | Identified exit to Mines 3678 | -9/Materials | Build established: Hacker-Mutant 3973 | -9/Materials | Discovered exit to Materials (range 16) 4685 | -9/Materials | Core integrity fell below 20% 4783 | -9/Materials | Repaired Adv. Treads 4836 | -9/Materials | Repaired Imp. Assault Rifle 4875 | -9/Materials | Repaired Adv. Treads 4915 | -9/Materials | Repaired Adv. Treads 4920 | -9/Materials | Discovered exit to Materials (range 13) 5107 | -9/Materials | Entered Mines 5123 | -9/Mines | Destroyed by G-47 Trooper with Particle Gun Last Messages --------------- 04915_ Acquired Adv. Treads. 04920_ EXIT=FOUND: MATERIALS 04956_ Y-45 Defender destroyed. 04959_ Acquired 56 matter. 04965_ Connecting with Terminal... >>Layout(Zone) Retrieving Zone 1R layout... Downloaded map data. >>Prototypes Downloading prototype IDs... Imp. EM Shotgun Imp. VTOL Module >>Manifests Retrieving manifest data... No active manifests on record. 04984_ K-01 Serf cleans the Electrolysis Chamber. 05034_ Acquired 7 matter. LOCATION=MINES GOAL=ESCAPE 05117_ G-34 Mercenary destroyed. Map ----- +----------------------------------------------------+ | ????????????????????????????????? | | ????????????????????????????????? | | ????????????????????????????????? | | ????????????????????????????????? | | ????????????????????????????????? | | ????????????????????????????????? | | ????????????????????????????????? | | ????????????????????????????????? | | ????????????????????????????????? | | ????????????????????????????????? | | ????????????????????????????????? | | ????????????????????????????????? | | ????????????????????????????????? | | ????????????????????????????????? | | ??????????????????????????##????? | | ?????????????????????????? ##???? | | ?????????????????????????? #???? | | ?????????????????????????? g##??? | | ??????????????????????????g #??? | | ?????????????????????????? #??? | | ????????????????????????##% #??? | | ??????????????????????### = #??? | | ?????????????????????## #??? | | ?????????????????????# #??? | | ?????????????????????# #??? | | ??????????????????????# @ #???? | | ??????????????????????# ##???? | | ??????????????????????## ##????? | | ???????????????????????####?????? | | ????????????????????????????????? | | ????????????????????????????????? | | ????????????????????????????????? | | ????????????????????????????????? | | ????????????????????????????????? | | ????????????????????????????????? | | ????????????????????????????????? | | ????????????????????????????????? | | ????????????????????????????????? | | | | | | | | | | | | | | | | | | | | | | | | | +----------------------------------------------------+ Best States ------------- Heat Dissipation 39 Energy Generation 14 Energy Capacity 280 Matter Stores 300 Matter Capacity 300 Sight Range 16 Terrain Scan Range 16 Terrain Scan Density 60 Armor Coverage 150 Evasion (%) 40 Recoil Reduction 2 Offensive Hacking 10 Defensive Hacking 10 Item Schematics ----------------- Adv. Treads | -9/Materials | Scanalyzed Imp. Assault Rifle | -9/Materials | Scanalyzed Cooling System | -9/Materials | Scanalyzed Flak Cannon | -9/Materials | Scanalyzed Imp. Ion Engine | -9/Materials | Scanalyzed Autogun | -9/Materials | Scanalyzed Cld. Ion Engine | -9/Materials | Scanalyzed Robot Schematics ------------------ None Fabricated ------------ Nothing Alien Tech Used ----------------- None Achievements -------------- None Challenges ------------ None Game ------ Seed MicroBombardmentSuperbattery Manual? 0 Play Time 00:49:22 Cumulative 43.7 hours Start 2022.01.17 @ 07:51:39 End 2022.01.17 @ 08:46:36 Sessions 1 Manual Loads 0 Difficulty Rogue Special Mode None Game No. 35 Rogue 35 Adventurer 0 Explorer 0 Win Type - Total 0 Types 0/0/0/0/0/0/0/0/0 Lore% 16 Gallery% 25 Achievement% 20 Wizard Run 0 Options --------- ASCII 0 Keyboard 0 Movement Numpad Keybinds 0 Fullscreen 1 Font 24/Smallcaps Map View 76x50 Tactical HUD 1 Map Filters NONE Filters NONE Steam 1 RUN: 1d51b075-11f9-45af-bac5-8f0f46d9e09b